{"text_format":"1","workbook":"xlsx","n_sheets":5,"sheets":["PAGO","PAGO (2)","DATOS","PROVINCIAS","Hoja1"],"not_rendered":{"charts":0,"images":3,"macros":1,"external_links":0,"defined_names":3,"comments":0,"pivot_tables":0},"unopened":[],"bounds":{"document_bytes":16777216,"sheet_cells":100000,"rows_first":2000,"rows_last":500,"rows_between":2000,"halvings":0,"cell_chars":16384,"cell_head_chars":4096},"cells_cut":0,"cells_raw":0,"read":"whole","date_system":"1900"}

{"sheet":"PAGO","index":0,"n_rows":78,"n_cols":23,"rows_kept":78,"cut":false,"hidden":false,"merged":[[33,2,33,13],[39,15,39,16],[39,17,39,18],[39,19,39,20],[39,22,39,23],[38,2,38,13],[41,2,41,13],[41,15,41,16],[41,17,41,18],[40,22,40,23],[40,19,40,20],[16,19,16,23],[16,15,16,18],[37,19,37,20],[29,19,29,20],[32,15,32,16],[33,15,33,16],[32,19,32,20],[33,19,33,20],[40,2,40,13],[35,2,35,13],[36,2,36,13],[29,15,29,16],[34,15,34,16],[32,17,32,18],[33,17,33,18],[35,22,35,23],[34,17,34,18],[35,17,35,18],[36,17,36,18],[37,17,37,18],[29,17,29,18],[18,1,18,6],[37,2,37,13],[29,2,29,13],[55,12,55,23],[22,22,23,23],[24,22,24,23],[25,22,25,23],[26,22,26,23],[32,22,32,23],[27,22,27,23],[24,19,24,20],[25,19,25,20],[26,19,26,20],[37,15,37,16],[22,17,23,18],[35,15,35,16],[36,15,36,16],[24,15,24,16],[25,15,25,16],[35,19,35,20],[24,2,24,13],[25,2,25,13],[26,2,26,13],[32,2,32,13],[38,19,38,20],[41,19,41,20],[38,22,38,23],[61,6,61,23],[63,15,63,24],[76,18,76,23],[63,1,63,4],[63,5,63,8],[63,9,63,12],[63,13,63,14],[44,6,44,9],[36,22,36,23],[37,22,37,23],[40,17,40,18],[54,2,54,6],[54,7,54,10],[51,21,51,23],[52,13,52,20],[52,21,52,23],[53,21,53,23],[54,13,54,20],[54,21,54,23],[56,21,56,23],[57,21,57,23],[43,17,43,20],[46,1,48,23],[36,19,36,20],[27,2,27,13],[34,2,34,13],[41,22,41,23],[38,15,38,16],[40,15,40,16],[38,17,38,18],[28,19,28,20],[28,22,28,23],[28,17,28,18],[29,22,29,23],[33,22,33,23],[34,19,34,20],[34,22,34,23],[30,2,30,13],[30,15,30,16],[30,17,30,18],[30,19,30,20],[30,22,30,23],[31,2,31,13],[31,15,31,16],[31,17,31,18],[31,19,31,20],[31,22,31,23],[39,2,39,13],[8,5,8,6],[11,1,11,8],[11,10,11,17],[11,19,11,23],[8,13,8,19],[28,2,28,13],[14,1,14,5],[14,7,14,12],[14,14,14,23],[22,2,23,13],[22,14,23,14],[22,15,23,16],[27,15,27,16],[27,19,27,20],[22,0,23,1],[22,19,23,21],[28,15,28,16],[24,17,24,18],[25,17,25,18],[26,17,26,18],[27,17,27,18],[26,15,26,16],[18,7,18,8],[18,10,18,23]]}
[]
[]
[]
[]
[]
[null,"DATOS ALUMNO/A"]
[]
[null,"Documento"]
[null,"de identidad:",null,null,null,null,null,null,null,null,"Número:"]
[]
[null,"Apellido1:",null,null,null,null,null,null,null,null,"Apellido 2:",null,null,null,null,null,null,null,null,"Nombre:"]
[]
[]
[null,"Télefono fijo:",null,null,null,null,null,"Télefono móvil:",null,null,null,null,null,null,"e-mail"]
[]
[]
[null,"CURSO EN EL QUE SE MATRICULA",null,null,null,null,null,null,null,null,null,null,null,null,null,"AÑO ACADÉMICO"]
[null,"NIVEL",null,null,null,null,null,null,null,null,"TÍTULO:"]
[null,"C.F. GRADO SUPERIOR",null,null,null,null,null,null,null,null,"Integración Social"]
[]
[null,"MODULOS EN LOS QUE SE MATRICULA:"]
[]
["Curso",null,"Módulo",null,null,null,null,null,null,null,null,null,null,null,"Horas","Matricular",null,"Precio",null,"Convalidar",null,null,"Precio Conval."]
[]
[null,"1º","0337 Contexto de la intervención social",null,null,null,null,null,null,null,null,null,null,null,102,null,null,{"$f":"O25*2.4","v":244.79999999999998},null,null,null,null,10]
[null,"1º","0338 Inserción sociolaboral",null,null,null,null,null,null,null,null,null,null,null,170,null,null,408,null,null,null,null,10]
[null,"1º","0339 Atención a las unidades de convivencia",null,null,null,null,null,null,null,null,null,null,null,170,null,null,408,null,null,null,null,10]
[null,"1º","0342 Promoción de la autonomía personal",null,null,null,null,null,null,null,null,null,null,null,204,null,null,{"$f":"O28*2.4","v":489.59999999999997},null,null,null,null,10]
[null,"1º","0344 Metodología de la intervención social",null,null,null,null,null,null,null,null,null,null,null,136,null,null,{"$f":"O29*2.4","v":326.39999999999998},null,null,null,null,10]
[null,"1º","1709 Itinerario personal para la empleabilidad I",null,null,null,null,null,null,null,null,null,null,null,102,null,null,{"$f":"O30*2.4","v":244.79999999999998},null,null,null,null,10]
[null,"1º","0179 Inglés profesional",null,null,null,null,null,null,null,null,null,null,null,68,null,null,{"$f":"O31*2.4","v":163.19999999999999},null,null,null,null,10]
[null,"1º","Módulo optativo I",null,null,null,null,null,null,null,null,null,null,null,34,null,null,{"$f":"O32*2.4","v":81.599999999999994},null,null,null,null,10]
[null,"2º","0340 Mediación comunitaria",null,null,null,null,null,null,null,null,null,null,null,132,null,null,{"$f":"O33*2.4","v":316.8},null,null,null,null,10]
[null,"2º","0341 Apoyo a la intervención educativa",null,null,null,null,null,null,null,null,null,null,null,165,null,null,396,null,null,null,null,10]
[null,"2º","0343 Sistemas alternativos de comunicación",null,null,null,null,null,null,null,null,null,null,null,165,null,null,396,null,null,null,null,10]
[null,"2º","0020 Primeros auxilios",null,null,null,null,null,null,null,null,null,null,null,66,null,null,158.4,null,null,null,null,10]
[null,"2º","0017 Habilidades sociales",null,null,null,null,null,null,null,null,null,null,null,231,null,null,554.4,null,null,null,null,10]
[null,"2º","1710 Itinerario personal para la empleabilidad II",null,null,null,null,null,null,null,null,null,null,null,68,null,null,163.19999999999999,null,null,null,null,10]
[null,"2º","1665 Digitalización aplicada a los sectores prod.",null,null,null,null,null,null,null,null,null,null,null,34,null,null,{"$f":"O39*2.4","v":81.599999999999994},null,null,null,null,10]
[null,"2º","1708 Sostenibilidad aplicada al sistema product.",null,null,null,null,null,null,null,null,null,null,null,34,null,null,81.599999999999994,null,null,null,null,10]
[null,"2º","0345 Proyecto de integración social",null,null,null,null,null,null,null,null,null,null,null,65,null,null,{"$f":"O41*2.4","v":156},null,null,null,null,10]
[null,"2º","Módulo optativo II",null,null,null,null,null,null,null,null,null,null,null,54,null,null,{"$f":"O42*2.4","v":129.6},null,null,null,null,10]
[]
[null,null,null,null,null,null,"TOTAL horas  e importe",null,null,null,null,null,null,null,{"$f":"SUMIF(P25:Q41,\"si\",O25:O41)","v":0},"h.",null,{"$f":"SUMIF(P25:Q41,\"si\",R25:S41)-SUMIF(T25:U42,\"si\",R25:S41)+SUMIF(T25:U42,\"si\",W25:X42)","v":0}]
[]
[null,"FORMA DE PAGO:"]
[null,"El pago inicial se podrá realizar mediante transferencia bancaria o ingreso en efectivo a través de los cajeros automáticos disponibles en la oficinas del Banco Santander, a favor del siguiente número de cuenta: ES05 0049 3319 5928 1405 0252"]
[]
[]
[null,"OBLIGATORIAMENTE DEBERÁ INDICARSE EN EL CONCEPTO EL NOMBRE  DEL ALUMNO/A SEGUIDO DE FP-ONLINE"]
[]
[null,null,null,null,null,null,null,null,null,null,null,null,null,null,null,null,null,null,null,null,null,{"$f":"IF(AND(DATOS!A35=TRUE,AND(O44<>986,O44<>1014)),DATOS!B35-H55,\"\")","v":""}]
[null,null,null,null,null,null,null,null,null,null,null,null,null,"8% DTO. PARA MATRICULA CURSO COMPLETO",null,null,null,null,null,null,null,{"$f":"IF(DATOS!A35=TRUE,IF(OR(O44=986,O44=1014),R44-(R44*8%)-H55,\"\"),\"\")","v":""}]
[null,null,null,null,null,null,null,null,null,null,null,null,null,null,null,null,null,null,null,null,null,{"$f":"IF(AND(DATOS!A36=TRUE,AND(O44<>986,O44<>1014)),DATOS!B36,\"\")","v":""}]
[null,null,"Total a pagar",null,null,null,null,{"$f":"SUMIF(DATOS!A31:A32,\"verdadero\",DATOS!B31:B32)","v":0},null,null,null,null,null,"4% DTO PARA MATRICULA CURSO COMPLETO",null,null,null,null,null,null,null,{"$f":"IF(DATOS!A36=TRUE,IF(OR(O44=986,O44=1014),(R44-(R44*4%)-H55)/3,\"\"),\"\")","v":""}]
[null,null,null,null,null,null,null,null,null,null,null,null,"SOLO PARA IMPORTES SUPERIORES A 1.000€"]
[null,null,null,null,null,null,null,null,null,null,null,null,null,null,null,null,null,null,null,null,null,{"$f":"IF(AND(DATOS!A37=TRUE,AND(O44<>986,O44<>1014),R44>=1000),DATOS!B37,\"\")","v":""}]
[null,null,null,null,null,null,null,null,null,null,null,null,null," 3% dto para matricula curso completo",null,null,null,null,null,null,null,{"$f":"IF(DATOS!A37=TRUE,IF(OR(O44=986,O44=1014),(R44-(R44*3%)-H55)/9,\"\"),\"\")","v":""}]
[]
[null,"DATOS PARA DOMICILIACIÓN BANCARIA"]
[]
[null,"Entidad Bancaria"]
[]
[null,"Código IBAN",null,null,null,"Entidad",null,null,null,"sucursal",null,null,null,"dc",null,"código cuenta"]
[null,"E","S",{"$f":"IF(ISBLANK($V$65),\"\",MID($C$71,1,1))","v":""},{"$f":"IF(ISBLANK($V$65),\"\",MID($C$71,2,1))","v":""},null,null,null,null,null,null,null,null,{"$f":"IF($N$68=10,LEFT($N$68,1),IF($N$68=11,0,$N$68))","v":""},{"$f":"IF($O$68=10,LEFT($O$68,1),IF($O$68=11,0,$O$68))","v":""}]
[null,null,null,null,null,null,null,null,null,null,null,null,null,{"$f":"SUM(F65*4,G65*8,H65*5,I65*10)","v":0},{"$f":"SUM(P65*1,Q65*2,R65*4,S65*8,T65*5,U65*10,V65*9,W65*7,X65*3,Y65*6)","v":0}]
[null,null,null,null,null,null,null,null,null,null,null,null,null,{"$f":"SUM(J65*9,K65*7,L65*3,M65*6)","v":0}]
[null,null,null,null,{"$f":"CONCATENATE(B65,C65,D65,E65,E69)","v":"ES"},null,null,null,null,null,null,null,null,{"$f":"IF(ISBLANK($H$65),\"\",11-MOD(SUM($N$66,$N$67),11))","v":""},{"$f":"IF(ISBLANK($U$65),\"\",11-MOD($O$66,11))","v":""}]
[null,null,null,null,{"$f":"CONCATENATE(F65,G65,H65,I65,J65,K65,L65,M65,N65,O65,P65,Q65,R65,S65,T65,U65,V65,W65,X65,Y65)","v":""}]
[]
[null,null,{"$f":"RIGHT(0&98-MOD(MOD(MOD(MOD(MID(E69,1,8),97)&MID(E69,9,8),97)&MID(E69&142800,17,8),97)&MID(E69&142800,25,2),97),2)","v":{"$error":"#VALUE!"}},null,{"$f":"MOD(MOD(MOD(MOD(MID(E69,1,8),97)&MID(E69,9,8),97)&MID(E69&142800,17,8),97)&MID(E69&142821,25,2),97)","v":{"$error":"#VALUE!"}}]
[]
[]
[]
[]
[]
[null,null,null,null,null,null,null,null,null,null,null,null,null,null,null,"Valladolid a"]
[null,null,null,null,null,null,null,null,null,null,null,null,null,null,null,null,null,"Firma del Titular"]

{"sheet":"PAGO (2)","index":1,"n_rows":50,"n_cols":20,"rows_kept":50,"cut":false,"hidden":false,"merged":[[9,1,9,8],[9,10,9,17],[9,19,9,23],[37,18,37,23],[20,6,20,9],[12,1,12,5],[12,7,12,8],[12,10,12,23],[23,17,23,20]]}
[]
[]
[]
[]
[]
[]
[null,"DATOS ALUMNO/A"]
[]
[null,"Apellido1:",null,null,null,null,null,null,null,null,"Apellido 2:",null,null,null,null,null,null,null,null,"Nombre:"]
[null,{"$f":"IF(ISBLANK(PAGO!$B$12),\"\",PAGO!$B$12)","v":""},null,null,null,null,null,null,null,null,{"$f":"IF(ISBLANK(PAGO!$K$12),\"\",PAGO!$K$12)","v":""},null,null,null,null,null,null,null,null,{"$f":"IF(ISBLANK(PAGO!$T$12),\"\",PAGO!$T$12)","v":""}]
[null,"CURSO EN EL QUE SE MATRICULA"]
[null,"NIVEL",null,null,null,null,null,"CURSO:",null,null,"TÍTULO:"]
[null,{"$f":"IF(ISBLANK(PAGO!$B$19),\"\",PAGO!$B$19)","v":"C.F. GRADO SUPERIOR"},null,null,null,null,null,{"$f":"IF(ISBLANK(PAGO!H19),\"\",PAGO!H19)","v":""},null,null,{"$f":"IF(ISBLANK(PAGO!K19),\"\",PAGO!K19)","v":"Integración Social"}]
[]
[null,"CUOTA POR ENSEÑANZA REGLADA"]
[]
[]
[]
[]
[]
[null,null,"Total a pagar:",null,null,null,{"$f":"IF(PAGO!$B$19=\"C.F. GRADO MEDIO\",SUMIF(DATOS!$G$3:$G$4,\"verdadero\",DATOS!$H$3:$H$4),\"\")","v":""}]
[]
[]
[null,null,null,null,null,null,null,null,null,null,null,null,null,"Total a pagar:",null,null,null,{"$f":"IF(OR(PAGO!$B$19=\"BACHILLER\",PAGO!$B$19=\"C.F. GRADO SUPERIOR\"),SUMIF(DATOS!$G$6:$G$10,\"verdadero\",DATOS!$H$6:$H$10),\"\")","v":162.12}]
[]
[]
[]
[null,null,null,null,null,null,null,null,null,null,null,null,null,{"$f":"SUM(#REF!*4,#REF!*8,#REF!*5,#REF!*10)","v":{"$error":"#REF!"}},{"$f":"SUM(#REF!*1,#REF!*2,#REF!*4,#REF!*8,#REF!*5,#REF!*10,#REF!*9,#REF!*7,#REF!*3,#REF!*6)","v":{"$error":"#REF!"}}]
[null,null,null,null,null,null,null,null,null,null,null,null,null,{"$f":"SUM(#REF!*9,#REF!*7,#REF!*3,#REF!*6)","v":{"$error":"#REF!"}}]
[null,null,null,null,null,null,null,null,null,null,null,null,null,{"$f":"IF(ISBLANK(#REF!),\"\",11-MOD(SUM(N28,N29),11))","v":{"$error":"#REF!"}},{"$f":"IF(ISBLANK(#REF!),\"\",11-MOD(O28,11))","v":{"$error":"#REF!"}}]
[null,null,null,null,{"$f":"CONCATENATE(#REF!,#REF!,#REF!,#REF!,#REF!,#REF!,#REF!,#REF!,#REF!,#REF!,#REF!,#REF!,#REF!,#REF!,#REF!,#REF!,#REF!,#REF!,#REF!,#REF!)","v":{"$error":"#REF!"}}]
[]
[null,null,{"$f":"RIGHT(0&98-MOD(MOD(MOD(MOD(MID(E31,1,8),97)&MID(E31,9,8),97)&MID(E31&142800,17,8),97)&MID(E31&142800,25,2),97),2)","v":{"$error":"#REF!"}},null,{"$f":"MOD(MOD(MOD(MOD(MID(E31,1,8),97)&MID(E31,9,8),97)&MID(E31&142800,17,8),97)&MID(E31&142821,25,2),97)","v":{"$error":"#REF!"}}]
[null,"FORMA DE PAGO:"]
[null,"El pago se realizará por transferencia bancaría , en el siguiente número de cuenta"]
[null,null,null,null,"Banco Popular ES21 0075 0549 19 0600035384."]
[null,"OBLIGATORIAMENTE DEBERÁ INDICARSE EN EL CONCEPTO EL NOMBRE  DEL ALUMNO/A"]
[null,null,null,null,null,null,null,null,null,null,null,null,null,null,null,"Valladolid a",null,null,{"$f":"TODAY()","v":"2024-06-20"}]
[null,null,null,null,null,null,null,null,null,null,null,null,null,null,null,null,null,"Firma del Titular"]
[]
[]
[]
[]
[]
[]
[]
[]
[]
[]
[null,null,null,null,null,null,null,null,null,null,null,null,null,null,null,null,"Ejemplar para la Entidad Bancaria"]

{"sheet":"DATOS","index":2,"n_rows":37,"n_cols":8,"rows_kept":37,"cut":false,"hidden":false,"merged":[[26,2,26,13],[15,2,15,13],[16,2,16,13],[17,2,17,13],[18,2,18,13],[19,2,19,13],[20,2,20,13],[21,2,21,13],[22,2,22,13],[23,2,23,13],[24,2,24,13],[25,2,25,13]]}
["NIVEL","AÑO","TITULO",null,null,"Celdas vinculadas"]
["C.F. GRADO MEDIO","1º","Atención a Personas en Situación de Dependencia",null,null,"Nivel",1]
["C.F. GRADO SUPERIOR","2º","Gestión Administrativa",null,null,"FPB Y GM",true,1.1200000000000001]
[null,null,"Farmacia y Parafarmacia",null,null,null,false,20]
[null,null,"Sistemas Microinformáticos y Redes",null,null,"G.S. Y BACHILLER"]
[null,null,"Administración y Finanzas",null,null," <28",true,24.12]
[null,null,"Desarrollo Aplicaciones Multiplataforma",null,null,">28",false,23]
[null,null,"Educación Infantil",null,null,"1trimestre",true,69]
["DOCUMENTO",null,"Gestión de Ventas y Espacios Comerciales",null,null,"2trimestre",true,69]
["D.N.I.",null,"Guía, Información y Asistencia Turística",null,null,"3trimestre",false,69]
["N.I.E.",null,"Integración Social"]
[null,null,"Laboratorio Clínico y Biomédico"]
[]
[]
["SI"]
[]
["2022/2023"]
["2023/2024"]
["2024/2025"]
["2025/2026"]
["2026/2027"]
["2027/2028"]
[]
[]
[]
[]
[]
[]
[]
[]
[false,1.1200000000000001]
[true,{"$f":"PAGO!R44*10%","v":0}]
[]
[]
[false,{"$f":"PAGO!R44","v":0}]
[false,{"$f":"(PAGO!R44-PAGO!H55)/3","v":0}]
[false,{"$f":"(PAGO!R44-PAGO!H55)/9","v":0}]

{"sheet":"PROVINCIAS","index":3,"n_rows":54,"n_cols":1,"rows_kept":54,"cut":false,"hidden":false,"merged":[]}
["Provincia"]
[]
["Álava (Vitoria)"]
["Albacete"]
["Alicante"]
["Almería"]
["Asturias (Oviedo)"]
["Ávila"]
["Badajoz"]
["Baleares (Palma de Mallorca)"]
["Barcelona"]
["Burgos"]
["Cáceres"]
["Cádiz"]
["Cantabria (Santander)"]
["Castellón"]
["Ceuta"]
["Ciudad Real"]
["Córdoba"]
["Coruña"]
["Cuenca"]
["Gerona"]
["Granada"]
["Guadalajara"]
["Guipúzcoa (San Sebastián)"]
["Huelva"]
["Huesca"]
["Jaén"]
["La Rioja (Logroño)"]
["Las Palmas"]
["León"]
["Lérida"]
["Lugo"]
["Madrid"]
["Málaga"]
["Melilla"]
["Murcia"]
["Navarra (Pamplona)"]
["Orense"]
["Palencia"]
["Pontevedra"]
["Salamanca"]
["Santa Cruz de Tenerife"]
["Segovia"]
["Sevilla"]
["Soria"]
["Tarragona"]
["Teruel"]
["Toledo"]
["Valencia"]
["Valladolid"]
["Vizcaya (Bilbao)"]
["Zamora"]
["Zaragoza"]

{"sheet":"Hoja1","index":4,"n_rows":42,"n_cols":14,"rows_kept":42,"cut":false,"hidden":false,"merged":[]}
["Curso","Módulo","Horas","matricula","Precio","Convalidar","Precio Conval."]
[1,"0099 Disposición y venta de productos",99,null,{"$f":"C2*2.4","v":237.6}]
[1,"0100 Oficina de farmacia",198,null,{"$f":"C3*2.4","v":475.2},null,5]
[1,"0102 Dispensación de productos parafarmacéuticos",264,null,633.6,null,5]
[1,"0103 Operaciones básicas de laboratorio",198,null,475.2,null,5]
[1,"0106. Formación y orientación laboral",99,null,237.6,null,5]
[1,"0061 Anatomofisiología y patología básicas",132,null,316.8,null,5]
[2,"0101 Dispensación de productos farmacéuticos",210,null,504,null,5]
[2,"0104 Formulación magistral",147,null,352.8,null,5]
[2,"0105 Promoción de la salud",168,null,403.2,null,5]
[2,"0107. Empresa e iniciativa emprendedora",63,null,151.19999999999999,null,5]
[2,"0020 Primeros auxilios",42,null,100.8,null,5]
[2,"0108. Formación en centros de trabajo.",380,null,912,null,50]
[null,"Total Módulos:"]
[]
[null,"Total Horas:"]
[]
[null,"Precio total sin descuentos:",null,null,null,null,null,null,null,{"$f":"990*2.4","v":2376}]
[null,null,null,null,null,null,null,null,null,{"$f":"J18*10%","v":237.60000000000002},null,null,null,"cuota"]
[null,"Descuento 10% para nuevos alumnos",null,null,null,null,null,null,null,{"$f":"J18-J19","v":2138.4},{"$f":"J18*3%","v":71.28},{"$f":"J20-K20","v":2067.12},{"$f":"L20+J19","v":2304.7199999999998},{"$f":"L20/9","v":229.67999999999998}]
[null,null,null,null,null,null,null,null,null,null,{"$f":"J18*4%","v":95.04},{"$f":"J20-K21","v":2043.3600000000001},{"$f":"L21+J19","v":2280.96},{"$f":"L21/3","v":681.12}]
[null,"Descuento 3% (más de 600 horas)"]
[]
[null,"Si abonas tu matrícula en un sólo plazo (3% descuento sobre el total a pagar, si es superior a 500 Euros)"]
[]
[null,"Si abonas tu matrícula en 5 plazos (importe de cada plazo)"]
[]
[]
[null,"0337 Contexto de la intervención social"]
[null,"0338 Inserción sociolaboral"]
[null,"0339 Atención a las unidades de convivencia"]
[null,"0340 Mediación comunitaria"]
[null,"0341 Apoyo a la intervención educativa"]
[null,"0342 Promoción de la autonomía personal"]
[null,"0343 Sistemas alternativos de comunicación"]
[null,"0344 Metodología de la intervención social"]
[null,"0020 Primeros auxilios"]
[null,"0017 Habilidades sociales"]
[null,"0345 Proyecto de Integración Social"]
[null,"0346 Formación y orientación laboral"]
[null,"0347 Empresa e iniciativa emprendedora"]
[null,"0348 Formación en Centros de trabajo"]